Cogmind - Beta 17.1 @@@ ROGUE MODE // 2026.09.04 @ 20:34:37 Player: C0-2MO Result: Escaped! Performance ------------- Evolutions (9) 4500 Regions Visited (18) 3600 Robots Destroyed (228) 1140 Value Destroyed (11336) 11336 Prototype IDs (44) 880 Alien Tech Used (0) 0 Bonus (35878) 35878 TOTAL SCORE: 57334 Bonus ------- Triggered High Security 500 High Alert Combat Kills 4906 Follower Combat Kills 6967 Prayed to X0-1V1 5000 Major X0-1V1 Interference 11700 Entered Garrisons 1000 Used RIF Installer 2500 Entered DSFs 500 Registered with UFD 300 Win 3000 Friendly Fire -495 Cogmind --------- Core Integrity 1537/1700 Matter 289/300 Energy 98/100 System Corruption 8% Temperature Cool (-594) Movement Core (50) Location To Epsilon Eridani Parts ------- > --- POWER (3) -------- (None) > --- PROPULSION (9) --- (None) > --- UTILITY (11) ----- (None) > --- WEAPON (3) ------- (None) > --- INVENTORY (5) ---- Particle Reactor Experimental Actuator Array Peak State ------------ > --- POWER ------------ Particle Reactor Light Quantum Reactor Light Quantum Reactor > --- PROPULSION ------- Myomer Leg Myomer Leg Myomer Leg Myomer Leg Myomer Leg Biometal Leg Biometal Leg Biometal Leg Centrium Leg > --- UTILITY ---------- Advanced Heat Sink Advanced Heat Sink Enhanced Optical Array Advanced Reaction Control System Improved Phase Shifter Wyrmplate Graphene Brace X0-1V1's Piety Tracker > --- WEAPON ----------- Compact HERF Cannon Enhanced Nova Cannon Heavy Scimitar of Distortion > --- INVENTORY -------- Particle Reactor Medium Treads Medium Treads Experimental Actuator Array Advanced Point Defense System [Rating: 224] Favorites ----------- Power Light Quantum Reactor Engine Light Ion Engine Power Core Micro Nuclear Core Reactor Light Quantum Reactor Propulsion Nuclear Pulse Array Treads Light Treads Leg Myomer Leg Wheel Armored Huge Wheel Flight Unit Nuclear Pulse Array Utility X0-1V1's Piety Tracker Device X0-1V1's Piety Tracker Storage Large Storage Unit Processor Enhanced Optical Array Hackware Hacking Suite Protection Wyrmplate Weapon Heavy Scimitar of Distortion Energy Cannon Compact Ion Cannon Ballistic Gun Light Assault Rifle Ballistic Cannon Mini Assault Cannon Launcher Grenade Launcher Special Weapon Improved Remote Datajack Impact Weapon Heavy Mace Slashing Weapon Heavy Scimitar of Distortion Build | -11 -10 -9 -9 -9 -9 -6 -6 -5 -5 -5 -5 -4 -4 -3 -3 -2 -2 -1 ------- Run | Yrd Mat Mat Sto Rec Scr Fac DSF Fac Gar Fac Gar Fac Gar Res Gar Res Gar Acc Slots Evolved 18 | . . 2 . . . 6 . 2 . . . 2 . 2 . 2 . 2 Power 1 | . . . . . . . . . . . . . . . . . . 1 Propulsion 8 | . . 2 . . . 3 . 2 . . . 1 . . . . . . Utility 7 | . . . . . . 3 . . . . . . . 2 . 2 . . Weapon 2 | . . . . . . . . . . . . 1 . . . . . 1 Parts Attached 194 | 4 10 20 8 . 3 3 9 7 7 6 16 2 10 15 1 26 37 10 Power 34 | . 1 3 3 . . . 2 . 2 1 3 . 2 . . 6 10 1 Engine 11 | . 1 3 3 . . . 1 . 1 . . . . . . 2 . . Core 8 | . . . . . . . 1 . 1 1 1 . 2 . . . 2 . Reactor 15 | . . . . . . . . . . . 2 . . . . 4 8 1 Propulsion 69 | 2 4 7 1 . 2 1 4 2 . . 4 1 4 8 . 10 15 4 Treads 5 | 2 1 . . . . . . . . . . . . . . . . 2 Leg 19 | . . . . . 2 . . . . . . . . . . . 15 2 Wheel 6 | . . . . . . . . . . . . . . . . 6 . . Hover . | . . . . . . . . . . . . . . . . . . . Flight 39 | . 3 7 1 . . 1 4 2 . . 4 1 4 8 . 4 . . Utility 59 | . 3 2 1 . 1 2 1 3 4 5 7 1 1 5 . 9 11 3 Device 35 | . 1 1 . . 1 1 . 1 4 2 4 1 . 2 . 5 9 3 Storage 1 | . . . . . . . 1 . . . . . . . . . . . Processor 9 | . 1 . 1 . . 1 . 1 . . 2 . . 2 . 1 . . Hackware 9 | . . 1 . . . . . 1 . 3 1 . 1 1 . 1 . . Protection 5 | . 1 . . . . . . . . . . . . . . 2 2 . Artifact . | . . . . . . . . . . . . . . . . . . . Weapon 32 | 2 2 8 3 . . . 2 2 1 . 2 . 3 2 1 1 1 2 Energy Gun . | . . . . . . . . . . . . . . . . . . . Energy Cannon 4 | . . . 1 . . . . . . . . . . . . . 1 2 Ballistic Gun 13 | 2 1 6 . . . . . . . . 1 . 1 . 1 1 . . Ballistic Cannon 2 | . . . 1 . . . . 1 . . . . . . . . . . Launcher 6 | . 1 2 . . . . . 1 . . . . 1 1 . . . . Special Weapon 2 | . . . . . . . . . . . 1 . 1 . . . . . Impact Weapon 1 | . . . 1 . . . . . . . . . . . . . . . Slashing Weapon 4 | . . . . . . . 2 . 1 . . . . 1 . . . . Piercing Weapon . | . . . . . . . . . . . . . . . . . . . Special Melee Weapon . | . . . . . . . . . . . . . . . . . . . Unidentified Prototypes 23 | . . 3 2 . . . . 3 . 1 4 . . 5 . 4 1 . Corrupted Parts 3 | . . . . . . . . . . . . . 1 . . . 2 . System Corruption 11 | . . . . . . . . . . . . . 4 . . . 7 . Parts Lost 87 | . . 2 1 . 5 . . . 4 2 6 . 3 2 . 37 11 14 Power 15 | . . 2 1 . 1 . . . . 1 . . 1 . . 5 3 1 Propulsion 38 | . . . . . 2 . . . . . 4 . 2 2 . 16 4 8 Utility 27 | . . . . . 1 . . . 3 1 2 . . . . 13 4 3 Weapon 7 | . . . . . 1 . . . 1 . . . . . . 3 . 2 Highest Loss Streak 10 | . . 1 1 . 3 . . . 1 1 3 . 2 2 . 10 4 9 To Critical Strikes 2 | . . . . . . . . . . . . . . . . 2 . . Average Backups 6 | . 4 4 5 5 4 4 4 9 11 11 11 12 13 13 11 8 3 4 Power . | . . . . . . . . . . . . . . . . . . 1 Propulsion 1 | . . 1 1 1 1 . . 3 3 3 2 1 1 . 2 . 1 1 Utility 2 | . 2 1 1 1 . . . 1 4 4 4 5 6 7 5 3 . 1 Weapon 1 | . 1 1 2 3 3 2 2 3 2 2 2 3 3 3 3 2 . . Tool/Special . | . . . . . . . . . . . . . . . . . . . Unused Backups 23 | . 1 2 1 2 . . . . 1 . . . 5 5 . 5 . 1 Power 1 | . . . . . . . . . . . . . . . . 1 . . Propulsion 1 | . . . . . . . . . 1 . . . . . . . . . Utility 11 | . 1 1 . . . . . . . . . . 3 2 . 3 . 1 Weapon 9 | . . 1 1 2 . . . . . . . . 2 2 . 1 . . Tool/Special 1 | . . . . . . . . . . . . . . 1 . . . . Average Slot Usage (%) 75 | . 65 88 87 88 84 36 53 72 72 71 77 74 80 85 86 69 60 79 Engine 3 | . 3 11 10 11 8 . 2 7 7 3 . . . . . . . . Core 1 | . . . . . . . 2 2 2 5 6 . . 9 9 1 . . Reactor 2 | . . . . . . . . . . . 4 10 8 . . 4 5 8 Treads 2 | . 19 . . . . . . . . . . . . . . . . . Leg 6 | . . . . . 4 1 . . . . . . . . . . 24 30 Flight 18 | . 8 33 33 33 28 11 15 22 22 22 23 24 27 28 27 19 . . Device 9 | . 1 3 . . 2 8 12 9 18 22 17 10 5 8 9 6 13 21 Storage 1 | . . . . . . . 1 5 5 5 5 5 5 4 4 3 . . Processor 7 | . . 7 10 11 10 3 6 9 3 . 7 10 10 14 18 14 4 2 Hackware 5 | . . 10 11 11 5 . . 4 . 4 5 10 14 11 9 8 . . Protection 1 | . 3 . . . 3 . . . . . . . . . . 1 5 2 Energy Cannon 2 | . . . 9 11 10 . . . . . . . . . . . 1 5 Ballistic Gun 6 | . 26 21 6 . . 4 4 . . . 3 5 4 1 . 1 . . Ballistic Cannon 1 | . . . 6 11 11 6 6 4 5 . 1 . . . . . . . Slashing Weapon 1 | . . . . . . . 1 5 3 4 . . . 3 3 2 3 2 Peak Build Rating 224 | 4 8 35 35 25 27 34 82 94 103 103 126 123 127 152 143 165 204 224 Average Rating 90 | 3 4 24 25 24 24 23 49 89 95 98 111 122 116 135 143 133 149 207 On Entrance 68 | . 4 8 34 25 25 19 34 74 90 94 94 115 123 93 143 143 11 179 Avg Prop Armor Cover (%) 13 | 24 26 . . . 13 . . . . . . . . 7 5 6 2 4 Naked Turns 4 | . . . . . . . . . . . . . . . . . . 4 Heaviest Build 153 | 3 8 15 15 11 12 10 39 39 49 47 61 58 65 44 44 119 134 153 Greatest Support 211 | 3 8 16 15 15 38 19 39 52 45 51 60 66 66 67 51 66 206 211 Greatest Overweight (x) 7 | . . . . . 1 . . . 1 . 1 . 1 1 . 7 2 1 Average Overweight (x) . | . . . . . . . . . . . . . . . . . . . Largest Inventory Capacity 15 | 5 5 5 5 5 5 5 15 15 15 15 15 15 15 15 15 15 5 5 Average Capacity 8 | 5 5 5 5 5 5 5 7 15 15 15 15 15 15 15 15 13 5 5 Most Carried 15 | 1 5 5 5 5 5 5 10 15 15 15 15 14 15 15 15 15 5 5 Average Carried 7 | . 4 4 5 4 4 3 5 12 14 14 13 12 13 14 15 11 3 4 Final Capacity 15 | 5 5 5 5 5 5 5 15 15 15 15 15 15 15 15 15 5 5 5 Final Carried 15 | 1 5 5 5 5 5 4 11 15 15 14 13 13 15 15 15 5 5 2 Class Distribution -------------------- 34% | Mutant 21% | Scavenger-Mutant 12% | Bothacker-Scout 10% | Scavenger-Sprinter 9% | Sprinter 7% | Commander-Mutant Dominant Class ---------------- Mutant | -10/Materials Mutant | -9/Materials Mutant | -9/Storage Commander-Mutant | -9/Recycling Mutant | -9/Scraptown Mutant | -6/Factory Scavenger-Mutant | -6/DSF Scout | -5/Factory Sprinter | -5/Garrison Sprinter | -5/Factory Scavenger-Sprinter | -5/Garrison Scavenger-Sprinter | -4/Factory Scavenger-Sprinter | -4/Garrison Bothacker-Scout | -3/Research Bothacker-Scout | -3/Garrison Bothacker-Scout | -2/Research Scavenger-Mutant | -2/Garrison Scavenger-Mutant | -1/Access Resources | -11 -10 -9 -9 -9 -9 -6 -6 -5 -5 -5 -5 -4 -4 -3 -3 -2 -2 -1 ----------- Run | Yrd Mat Mat Sto Rec Scr Fac DSF Fac Gar Fac Gar Fac Gar Res Gar Res Gar Acc Matter Collected 7269 | 260 684 1540 439 18 85 43 47 17 562 132 744 . 438 141 375 915 817 12 Remotely . | . . . . . . . . . . . . . . . . . . . Salvage Created 9911 | 77 926 1746 948 93 352 43 120 17 199 27 660 . 415 141 376 1589 1725 457 Parts 510 | 8 68 119 67 5 17 3 7 4 2 3 28 . 19 2 10 58 67 23 Haulers Intercepted 12 | . 2 5 2 . . . . . . . . . . 1 . 2 . . Recyclers Shooed 4 | 1 . . . . . . . . . 1 . . . . . 2 . . Parts Field Recycled . | . . . . . . . . . . . . . . . . . . . Retrieved Matter . | . . . . . . . . . . . . . . . . . . . Parts Self-Destructed . | . . . . . . . . . . . . . . . . . . . Prevented . | . . . . . . . . . . . . . . . . . . . Parts Restored . | . . . . . . . . . . . . . . . . . . . Kills | -11 -10 -9 -9 -9 -9 -6 -6 -5 -5 -5 -5 -4 -4 -3 -3 -2 -2 -1 ------- Run | Yrd Mat Mat Sto Rec Scr Fac DSF Fac Gar Fac Gar Fac Gar Res Gar Res Gar Acc Combat Hostiles Destroyed 169 | . 17 45 22 2 5 . 1 . 6 . 15 . 11 . 6 11 25 3 Melee 25 | . . . . . . . . . . . . . . . 4 3 17 1 Guns 56 | . 9 28 7 . . . . . . . 7 . 3 . . 2 . . Cannons 37 | . . . 15 2 5 . 1 . 6 . 5 . . . . . 1 2 AOE 45 | . 8 17 . . . . . . . . 3 . 8 . . 6 3 . Classes Destroyed 20 | 2 7 4 . . 2 . 1 . 1 . 2 . . . . . 1 . Worker 6 | . 4 . . . . . . . . . . . . . . 1 . 1 Builder 12 | . 2 1 . . . . . 1 . . . . . . . 7 . 1 Tunneler 3 | 1 1 . . . . . . . . . . . . . . 1 . . Hauler 12 | . 2 5 2 . . . . . . . . . . 1 . 2 . . Recycler 8 | 1 2 1 . . . . . . . . . . . . . 3 . 1 Mechanic 3 | . . 1 . . . 1 . . . . . . . . . 1 . . Operator 1 | . 1 . . . . . . . . . . . . . . . . . Watcher 14 | . 3 3 1 . . . . . . 1 . . . 1 . 3 . 2 Swarmer 40 | . 3 18 6 . . . . . . . 1 . 2 . 2 . 8 . Cutter 1 | . . . . . . . 1 . . . . . . . . . . . Grunt 66 | . 14 15 5 . . . . . 3 . 7 . 7 . 3 6 5 1 Duelist 4 | . . 1 1 . . . . . . . . . 1 . . . 1 . Protector 1 | . . 1 . . . . . . . . . . . . . . . . Sentry 34 | . . 10 10 2 . . . . 2 . 2 . . . . 2 6 . Hunter 11 | . . . . . . . . . 1 . 3 . . . 1 3 3 . Programmer 5 | . . . . . . . . . . . 1 . 1 . . . 1 2 Behemoth 1 | . . . . . . . . . . . . . . . . . 1 . Executioner 1 | . . . . . . . . . . . 1 . . . . . . . Scrapper 4 | . . . . . 4 . . . . . . . . . . . . . Elite 1 | . . . . . 1 . . . . . . . . . . . . . Best Kill Streak 11 | 2 6 8 7 1 4 1 1 1 2 1 4 . 9 1 3 11 6 5 Combat Bots Only 9 | . 5 8 7 1 4 . 1 . 2 . 4 . 9 . 3 6 6 1 Max Kills in Single Turn 4 | 1 3 4 1 1 1 1 1 1 1 1 2 . 3 1 1 4 4 1 Gunslinging . | . . . . . . . . . . . . . . . . . . . Exploded 4 | . 3 4 . . . . . . . . 2 . 3 . . 3 3 . Melee 1 | . . . . . . . . . . . . . . . 1 1 1 1 Uniques/NPCs Destroyed . | . . . . . . . . . . . . . . . . . . . Combat | -11 -10 -9 -9 -9 -9 -6 -6 -5 -5 -5 -5 -4 -4 -3 -3 -2 -2 -1 -------- Run | Yrd Mat Mat Sto Rec Scr Fac DSF Fac Gar Fac Gar Fac Gar Res Gar Res Gar Acc Hostile Shots Fired 1778 | . 57 114 66 2 30 . 7 . 55 38 75 . 40 4 19 507 369 395 Missed 719 | . 20 55 36 . 11 . 3 . 27 12 31 . 18 1 8 187 108 202 Hits 1059 | . 37 59 30 2 19 . 4 . 28 26 44 . 22 3 11 320 261 193 Melee 44 | . . . . . . . 1 . . . . . . . . 32 10 1 Projectile 1015 | . 37 59 30 2 19 . 3 . 28 26 44 . 22 3 11 288 251 192 AOE 9 | . . . . . . . . . . 2 . . 2 . . 3 1 1 Critical Strikes 44 | . 1 1 . . 2 . 1 . 2 . 2 . 2 . . 12 14 7 Actively Blocked 7 | . . . . . . . . . . . . . . . . . . 7 Damage Taken 21534 | . 454 668 331 33 459 . 89 . 535 326 852 . 621 73 322 6618 6559 3594 Core 2194 | . 170 53 136 . 129 . 18 . 167 35 87 . 81 . 40 798 317 163 Absorbed by Shields 389 | . . . . . . . . . 190 80 119 . . . . . . . Redirected to Shielding 143 | . . . . . . . . . . . . . . . . 100 43 . Ignored by Resistances 281 | . . . . . . . . . . 41 . . . . . . 28 212 Regen/Repaired (Parts) 9311 | . 44 8 . . . . . . . 31 . . . . . 2994 4227 2007 Core Remaining (%) 76 | 100 32 . . . 65 . 98 . . . 73 . 93 . 97 . 44 90 Volleys Fired 637 | 5 108 120 62 3 12 5 5 . 43 4 98 . 41 4 28 59 . 40 Largest 2 | 2 2 2 2 2 2 1 2 . 2 1 1 . 1 1 1 1 . 1 Hottest 130 | 40 40 51 130 130 130 28 68 . 73 40 38 . 49 38 38 49 . 120 Shots Fired 921 | 10 204 230 119 6 22 5 10 . 48 4 91 . 41 4 28 59 . 40 Gun 626 | 10 192 218 48 . . 5 5 . . . 53 . 35 2 12 46 . . Cannon 223 | . . . 71 6 22 . 5 . 46 4 29 . . . . . . 40 Launcher 41 | . 12 12 . . . . . . 2 . 2 . 6 . . 7 . . Special 31 | . . . . . . . . . . . 7 . . 2 16 6 . . Kinetic 747 | 10 192 218 72 3 10 5 10 . 46 4 82 . 35 2 12 46 . . Thermal 97 | . . . 47 3 12 . . . . . . . . . . . . 35 Explosive 41 | . 12 12 . . . . . . 2 . 2 . 6 . . 7 . . Electromagnetic 5 | . . . . . . . . . . . . . . . . . . 5 Robot Hit Streak 16 | 3 8 12 11 4 7 4 2 . 12 2 16 . 11 2 5 6 . 4 Robot Miss Streak 7 | 1 7 4 3 3 1 1 3 . 4 2 4 . 3 3 2 4 . 3 Penetration Max 1 | . . 1 1 . . . . . . . 1 . 1 . . 1 . . Secondary Targets 4 | . 1 3 . . . . . . . . . . . . . . . . Max Gunslinging Chain 1 | . 1 1 . . . . . . . . . . . . . . . . Shots Hit Robots 633 | 6 88 137 71 4 12 4 6 1 37 8 48 . 21 5 27 61 78 19 Core Hits 382 | 4 58 83 29 2 7 2 2 1 16 1 36 . 25 2 5 60 38 11 Critical Kills 7 | . . 2 . . . . . . . . 4 . . . . . 1 . Critical Parts Destroyed 6 | . . 2 1 . . . . . . . 1 . . . . 2 . . Critical Strikes 28 | . . 4 5 1 . . . . 7 . 7 . . . . 3 1 . Meltdown 1 | . . . . . . . . . . . . . . . . . 1 . Destroy 12 | . . 4 . . . . . . . . 5 . . . . 3 . . Blast 12 | . . . 4 1 . . . . 5 . 2 . . . . . . . Smash 1 | . . . 1 . . . . . . . . . . . . . . . Sever 2 | . . . . . . . . . 2 . . . . . . . . . Melee Attacks 242 | . . . 1 . . . 3 2 13 14 . . . 4 23 45 127 10 Impact 1 | . . . 1 . . . . . . . . . . . . . . . Slashing 241 | . . . . . . . 3 2 13 14 . . . 4 23 45 127 10 Piercing . | . . . . . . . . . . . . . . . . . . . Sneak Attacks 14 | . . . 1 . . . . 1 1 1 . . . 2 . 7 1 . Combat Hostiles 2 | . . . . . . . . . 1 . . . . . . . 1 . Follow-up Attacks . | . . . . . . . . . . . . . . . . . . . Damage Inflicted 25515 | 71 1784 3554 2040 125 377 86 285 70 1134 399 1906 . 1693 291 477 5658 4282 1283 Guns 6436 | 71 1029 2275 701 . . 86 17 . . . 701 . 573 27 . 956 . . Cannons 4365 | . . . 1191 125 377 . 57 . 847 77 828 . . . . . 182 681 Explosions 6813 | . 755 1279 32 . . . . . 67 . 377 . 1120 . . 2945 167 71 Melee 7765 | . . . 116 . . . 211 70 220 320 . . . 264 477 1757 3882 448 Ramming 136 | . . . . . . . . . . 2 . . . . . . 51 83 Kinetic 8821 | 71 1029 2275 1080 64 133 86 74 . 847 77 1529 . 573 27 . 956 . . Thermal 1815 | . . . 812 61 244 . . . . . . . . . . . 182 516 Explosive 6742 | . 755 1279 32 . . . . . 67 . 377 . 1120 . . 2945 167 . Electromagnetic 236 | . . . . . . . . . . . . . . . . . . 236 Impact 116 | . . . 116 . . . . . . . . . . . . . . . Slashing 7649 | . . . . . . . 211 70 220 320 . . . 264 477 1757 3882 448 Piercing . | . . . . . . . . . . . . . . . . . . . Highest Corruption 21 | . . . . . . . . . 11 18 21 . 14 . . . 7 8 Average Corruption 10 | . . . . . . . . . 11 17 18 . 3 . . . 4 2 Corruption Purged . | . . . . . . . . . . . . . . . . . . . Corruption Blocked . | . . . . . . . . . . . . . . . . . . . Effects 94 | . . . . . . . . . 12 23 33 . 5 . . . 12 9 Message Errors 21 | . . . . . . . . . 5 3 9 . . . . . 1 3 Matter Fused 19 | . . . . . . . . . 1 7 5 . . . . . 3 3 Heat Flow Errors 8 | . . . . . . . . . . 4 2 . . . . . 2 . Energy Discharges 12 | . . . . . . . . . 1 3 2 . . . . . 5 1 Parts Rejected 1 | . . . . . . . . . . . 1 . . . . . . . Parts Fused 3 | . . . . . . . . . 1 1 1 . . . . . . . Data Loss (minor) 10 | . . . . . . . . . 1 3 2 . 1 . . . 1 2 Data Loss (major) 4 | . . . . . . . . . 1 . 2 . 1 . . . . . Misfires 1 | . . . . . . . . . 1 . . . . . . . . . Alerts 3 | . . . . . . . . . . 1 1 . 1 . . . . . Misdirections 5 | . . . . . . . . . 1 1 1 . 2 . . . . . Weapon Failures 7 | . . . . . . . . . . . 7 . . . . . . . Overload Shots . | . . . . . . . . . . . . . . . . . . . Overflow Damage 1020 | . 7 34 124 . . . . . 4 . 1 . 56 30 . 599 106 59 Projectiles 83 | . . . 8 . . . . . 4 . 1 . . . . . 11 59 Explosions 329 | . 7 34 . . . . . . . . . . 56 . . 202 30 . Melee 608 | . . . 116 . . . . . . . . . . 30 . 397 65 . Knockbacks 7 | . . . . . . . . . 2 1 2 . . . . . . 2 Impact 2 | . . . . . . . . . . . . . . . . . . 2 Kinetic 5 | . . . . . . . . . 2 1 2 . . . . . . . Secondary . | . . . . . . . . . . . . . . . . . . . Self-Inflicted Damage 147 | . 39 . . . . . . . . 1 . . . . . 54 53 . Shots 4 | . 2 . . . . . . . . . . . . . . 1 1 . Rammed 1 | . . . . . . . . . . 1 . . . . . . . . Targets Rammed 7 | . . . . . . . . . . 1 . . . . . . 4 2 Kicked 6 | . . . . . . . . . . . . . . . . . 4 2 Crushed . | . . . . . . . . . . . . . . . . . . . Highest Temperature 408 | . 23 25 408 147 323 . . 1 339 204 94 8 63 113 11 218 220 370 Average Temperature 75 | . 4 8 145 62 112 . . 1 65 89 34 8 25 39 4 47 117 88 Received Heat Transfer 2388 | . 240 183 51 9 48 . 18 . 130 . 111 . 73 9 9 490 792 225 Effects 17 | . . . 4 . . . . . 2 . . . . . . . 6 5 Shutdowns 2 | . . . 1 . . . . . . . . . . . . . . 1 Energy Bleed 2 | . . . . . . . . . . . . . . . . . 1 1 Interference 11 | . . . 1 . . . . . 2 . . . . . . . 5 3 Matter Decay 1 | . . . 1 . . . . . . . . . . . . . . . Damage (minor) 1 | . . . 1 . . . . . . . . . . . . . . . Siege Activations . | . . . . . . . . . . . . . . . . . . . Martial Activations . | . . . . . . . . . . . . . . . . . . . Shielding Activations . | . . . . . . . . . . . . . . . . . . . Robots Disrupted . | . . . . . . . . . . . . . . . . . . . Combat Hostiles . | . . . . . . . . . . . . . . . . . . . Robots Corrupted 3 | . . . 1 . . . . . . . . . . . . . 1 1 Combat Hostiles 1 | . . . . . . . . . . . . . . . . . 1 . Parts Fried 3 | . . . 1 . . . . . . . . . . . . . 2 . Impact Corruptions 4 | . . . 2 . . . . . . . . . . . . . 2 . Robots Melted 1 | . . . . . . . . . . . . . . . . . 1 . Combat Hostiles 1 | . . . . . . . . . . . . . . . . . 1 . Parts Melted 3 | . . . . . . . . . . . . . 1 . . . 1 1 Heat Transferred 1818 | . . . 1036 74 225 . . . . . . . . . . . 100 383 Parts Sabotaged 1 | . . . . . . . . . . . . . . . . . . 1 Parts Stolen . | . . . . . . . . . . . . . . . . . . . Parts Stripped 47 | . . . . . . . . . . . . . . . 15 10 22 . Power Chain Reactions 1 | . . . . . . . . . . . . . . . . . . 1 Alert | -11 -10 -9 -9 -9 -9 -6 -6 -5 -5 -5 -5 -4 -4 -3 -3 -2 -2 -1 ------- Run | Yrd Mat Mat Sto Rec Scr Fac DSF Fac Gar Fac Gar Fac Gar Res Gar Res Gar Acc Maximum Alert Level 5 | . 2 3 3 2 . . 1 2 4 3 5 3 5 4 5 5 5 5 Low Security (%) 10 | 100 54 . . . . 100 57 71 . . . . . . . . . . Level 1 9 | . 44 10 . 38 . . 42 5 7 . . . . . . . . . Level 2 14 | . . 22 58 61 . . . 22 25 58 4 . . . . . . . Level 3 21 | . . 66 41 . . . . . 34 41 22 100 26 80 23 10 . . Level 4 7 | . . . . . . . . . 32 . 28 . 28 19 12 21 . . Level 5 34 | . . . . . . . . . . . 44 . 45 . 64 68 100 71 High Security 2 | . . . . . . . . . . . . . . . . . . 28 Max Security . | . . . . . . . . . . . . . . . . . . . Sterilizations 1 | . . . . . . . 1 . . . . . . . . . . . Peak Influence 3765 | 5 512 1055 849 486 . 14 326 443 1389 757 2031 1068 1924 1116 2011 3518 3765 2554 Initial 2638 | . . 215 445 321 . . 2 170 303 728 480 1066 733 1082 805 1119 2638 2252 Average 1364 | 2 203 761 656 409 . 4 153 244 899 694 1419 1061 1475 1090 1626 2181 3180 2253 Influence Increases 15189 | 10 952 1464 872 215 . 20 324 343 1126 352 1691 2 1221 102 1226 3291 1287 691 Destroy 0b10 Robot/C 6100 | . 340 900 480 40 . . 180 . 420 140 820 . 540 20 540 980 640 60 Destroy 0b10 Robot/NC 430 | 10 75 70 15 . . 5 5 5 . 25 . . 5 15 . 175 . 25 Destroy Leader 914 | . 80 178 156 . . . 20 . 30 42 50 . 40 14 50 190 40 24 Allied During Kill 1599 | . . 4 38 2 . 1 50 1 101 42 248 . 134 10 207 719 42 . Successful Hack 277 | . 26 63 15 19 . 14 . 34 12 14 26 . 12 . 14 . 28 . Disable Machine 390 | . . 75 60 . . . . 15 30 15 15 . . 15 30 90 . 45 Anti-Garrison Action 1200 | . . . . . . . . . 100 . 250 . 200 . 250 150 250 . Destroy Structure 2136 | . 43 84 48 2 . . 54 20 268 44 267 2 230 28 120 672 107 147 Partial Spotted 285 | . 15 15 15 . . . . . 75 30 . . 30 . 15 60 30 . Lose Combat Pursuer 1230 | . 165 75 45 . . . 15 . 90 . 15 . 30 . . 255 150 390 Miscellaneous 628 | . 208 . . 152 . . . 268 . . . . . . . . . . Influence Decreases 12720 | 10 440 921 1102 664 376 16 2 236 170 1055 346 985 345 952 309 1764 1050 1977 Entered New Map 8588 | . . 297 610 504 376 . 2 156 130 661 206 965 315 842 269 872 880 1503 Time Decay 2332 | 10 440 404 262 160 . 16 . 80 . 254 . 20 . 90 . 342 . 254 Lost Part 820 | . . 20 10 . . . . . 40 20 60 . 30 20 . 370 110 140 Lost Ally 680 | . . 50 70 . . . . . . 120 80 . . . 40 180 60 80 Purge Threat 300 | . . 150 150 . . . . . . . . . . . . . . . Squads Dispatched 58 | . 4 7 1 . . 1 2 2 . 5 . . . . . 21 . 15 Investigation 10 | . 3 3 . . . 1 . 1 . 1 . . . . . 1 . . Extermination 6 | . . . . . . . . 1 . 1 . . . . . 3 . 1 Reinforcement 21 | . 1 2 1 . . . 2 . . 2 . . . . . 11 . 2 Assault 19 | . . 2 . . . . . . . . . . . . . 5 . 12 Garrison 2 | . . . . . . . . . . 1 . . . . . 1 . . Intercept . | . . . . . . . . . . . . . . . . . . . Searches Triggered . | . . . . . . . . . . . . . . . . . . . Construction Impeded 6 | . . . . . . . . . . 1 . . . . . 4 . 1 Haulers Reinforced 5 | . . . . . . . . . . . . . . . . 5 . . Active Scanning Responses . | . . . . . . . . . . . . . . . . . . . Cargo Convoy Interrupts . | . . . . . . . . . . . . . . . . . . . Alert ID Control Effect 11 | . . . . . . . . . . . . . . . . 11 . . Stealth | -11 -10 -9 -9 -9 -9 -6 -6 -5 -5 -5 -5 -4 -4 -3 -3 -2 -2 -1 --------- Run | Yrd Mat Mat Sto Rec Scr Fac DSF Fac Gar Fac Gar Fac Gar Res Gar Res Gar Acc Distress Signals 20 | . 2 5 2 . . . . . . 1 . . . . . 6 . 4 Communications Jammed . | . . . . . . . . . . . . . . . . . . . Distress Signals . | . . . . . . . . . . . . . . . . . . . Times Spotted 494 | . 36 70 27 1 12 1 4 1 22 10 39 . 26 4 30 104 57 50 Peak Tracking Total 29 | . 6 10 5 . 14 . 4 1 6 6 11 . 10 2 7 19 7 29 Tactical Retreats 37 | . 6 4 1 . . . 1 . 3 . 1 . 1 . . 6 8 6 Traps | -11 -10 -9 -9 -9 -9 -6 -6 -5 -5 -5 -5 -4 -4 -3 -3 -2 -2 -1 ------- Run | Yrd Mat Mat Sto Rec Scr Fac DSF Fac Gar Fac Gar Fac Gar Res Gar Res Gar Acc Traps Triggered 25 | . 3 1 . . . . . . 2 . 1 . 7 . 1 2 5 3 Indirectly . | . . . . . . . . . . . . . . . . . . . Trap Hack Attempts . | . . . . . . . . . . . . . . . . . . . Triggered . | . . . . . . . . . . . . . . . . . . . Disarmed . | . . . . . . . . . . . . . . . . . . . Reprogrammed . | . . . . . . . . . . . . . . . . . . . Reused . | . . . . . . . . . . . . . . . . . . . Traps Extracted . | . . . . . . . . . . . . . . . . . . . Installed . | . . . . . . . . . . . . . . . . . . . Triggered . | . . . . . . . . . . . . . . . . . . . Machines | -11 -10 -9 -9 -9 -9 -6 -6 -5 -5 -5 -5 -4 -4 -3 -3 -2 -2 -1 ---------- Run | Yrd Mat Mat Sto Rec Scr Fac DSF Fac Gar Fac Gar Fac Gar Res Gar Res Gar Acc Machines Disabled 54 | . . 5 4 . 14 . . 1 3 1 4 . 5 1 4 7 2 3 Max in Single Turn 2 | . . 2 1 . 1 . . 1 1 . 1 . 2 1 1 1 1 1 Garrison Access 3 | . . . 1 . . . . . . . . . . . . 1 . 1 Garrison Relay 11 | . . . . . . . . . 1 . 3 . 3 . 2 . 2 . Phase Generator 2 | . . . . . . . . . 1 . . . 1 . . . . . Energy Cycler 1 | . . . . . . . . . . . . . . . . . . 1 Machines Repaired . | . . . . . . . . . . . . . . . . . . . Machines Dismantled . | . . . . . . . . . . . . . . . . . . . Machines Sabotaged . | . . . . . . . . . . . . . . . . . . . Overloaded Fab Kills . | . . . . . . . . . . . . . . . . . . . Hacking | -11 -10 -9 -9 -9 -9 -6 -6 -5 -5 -5 -5 -4 -4 -3 -3 -2 -2 -1 --------- Run | Yrd Mat Mat Sto Rec Scr Fac DSF Fac Gar Fac Gar Fac Gar Res Gar Res Gar Acc Machines Accessed 70 | . 9 12 10 5 3 4 . 6 1 5 2 1 1 2 2 4 2 1 Terminals 47 | . 8 9 9 5 . 2 . 3 1 1 2 . 1 1 2 1 2 . Fabricators 1 | . . . . . . . . . . 1 . . . . . . . . Repair Stations 7 | . 1 1 . . . 1 . 2 . 1 . . . . . 1 . . Recycling Units 1 | . . . . . . 1 . . . . . . . . . . . . Scanalyzers 4 | . . 2 . . . . . . . 1 . . . . . 1 . . Garrison Access 7 | . . . 1 . . . . 1 . 1 . 1 . 1 . 1 . 1 Total Hacks 195 | . 29 43 23 18 9 6 . 17 3 16 5 1 3 3 6 7 4 2 Successful 118 | . 16 30 16 12 9 4 . 6 1 11 2 1 1 1 1 3 2 2 Failed 76 | . 13 13 7 6 . 2 . 11 2 4 3 . 2 2 5 4 2 . Catastrophic 12 | . 3 . 1 . . 1 . 2 . 1 2 . . . . 1 1 . Database Lockouts 1 | . . . . . . . . . . 1 . . . . . . . . Manual 102 | . 26 22 15 14 . 5 . 10 . 3 2 . . 2 . 3 . . Terminals 136 | . 25 33 22 18 . 3 . 10 3 1 5 . 3 2 6 1 4 . Fabricators 4 | . . . . . . . . . . 4 . . . . . . . . Repair Stations 20 | . 4 3 . . . 2 . 5 . 3 . . . . . 3 . . Recycling Units 1 | . . . . . . 1 . . . . . . . . . . . . Scanalyzers 16 | . . 7 . . . . . . . 7 . . . . . 2 . . Garrison Access 9 | . . . 1 . . . . 2 . 1 . 1 . 1 . 1 . 2 Terminal Hacks 42 | . 3 9 7 5 9 1 . . 1 1 2 . 1 . 1 . 2 . Record 3 | . . . . . 3 . . . . . . . . . . . . . Part Schematic 1 | . . . . 1 . . . . . . . . . . . . . . Robot Schematic 2 | . . 1 . 1 . . . . . . . . . . . . . . Robot Analysis 11 | . 2 2 . 1 6 . . . . . . . . . . . . . Prototype ID Bank 5 | . 1 3 . 1 . . . . . . . . . . . . . . Open Door 4 | . . . 4 . . . . . . . . . . . . . . . Open DSF 2 | . . . . . . 1 . . . 1 . . . . . . . . Emergency Access Points 4 | . . . . . . . . . 1 . 1 . . . 1 . 1 . Alert Level 1 | . . . 1 . . . . . . . . . . . . . . . Unreport Threat 2 | . . 1 1 . . . . . . . . . . . . . . . Locate Traps 1 | . . 1 . . . . . . . . . . . . . . . . Zone Layout 3 | . . 1 1 1 . . . . . . . . . . . . . . Garrison Registry 1 | . . . . . . . . . . . . . 1 . . . . . Patrol Navigation 1 | . . . . . . . . . . . . . . . . . 1 . Security Stations 1 | . . . . . . . . . . . 1 . . . . . . . Fabricator Hacks 3 | . . . . . . . . . . 3 . . . . . . . . Load Schematic 1 | . . . . . . . . . . 1 . . . . . . . . Build 2 | . . . . . . . . . . 2 . . . . . . . . Repair Station Hacks 7 | . 4 1 . . . . . 1 . 1 . . . . . . . . Scan Component 2 | . 2 . . . . . . . . . . . . . . . . . Repair 2 | . 2 . . . . . . . . . . . . . . . . . Refit 3 | . . 1 . . . . . 1 . 1 . . . . . . . . Recycling Unit Hacks . | . . . . . . . . . . . . . . . . . . . Scanalyzer 10 | . . 6 . . . . . . . 4 . . . . . . . . Insert Component 2 | . . 1 . . . . . . . 1 . . . . . . . . Analyze 2 | . . 1 . . . . . . . 1 . . . . . . . . Retrieve Study 6 | . . 4 . . . . . . . 2 . . . . . . . . Garrison Access Hacks 8 | . . . 1 . . . . 1 . 1 . 1 . 1 . 1 . 2 Unlock Access 5 | . . . . . . . . 1 . 1 . 1 . 1 . 1 . . Seal Access 2 | . . . 1 . . . . . . . . . . . . . . 1 Coupler Status 1 | . . . . . . . . . . . . . . . . . . 1 Unauthorized Hacks 47 | . 9 14 8 7 . 2 . 4 . 1 . . . . . 2 . . Terminals 43 | . 9 13 8 7 . 2 . 4 . . . . . . . . . . Assimilate 5 | . . 5 . . . . . . . . . . . . . . . . Botnet 10 | . 2 2 2 2 . 1 . 1 . . . . . . . . . . Disrupt 1 | . . . 1 . . . . . . . . . . . . . . . Operators 2 | . 1 1 . . . . . . . . . . . . . . . . Skim 25 | . 6 5 5 5 . 1 . 3 . . . . . . . . . . Fabricators . | . . . . . . . . . . . . . . . . . . . Repair Stations 4 | . . 1 . . . . . . . 1 . . . . . 2 . . Mechanics 1 | . . . . . . . . . . . . . . . . 1 . . Patch 3 | . . 1 . . . . . . . 1 . . . . . 1 . . Recycling Units . | . . . . . . . . . . . . . . . . . . . Scanalyzers . | . . . . . . . . . . . . . . . . . . . Garrison Access . | . . . . . . . . . . . . . . . . . . . Data Cores Recovered . | . . . . . . . . . . . . . . . . . . . Used . | . . . . . . . . . . . . . . . . . . . Hacking Detections 53 | . 9 10 7 4 . 2 . 6 1 2 2 . 1 1 2 3 2 1 Full Trace Events 7 | . . . . . . 1 . 1 1 . 2 . . . 1 . 1 . Feedback Events 1 | . . . . . . . . . 1 . . . . . . . . . Hackware Fried 1 | . . . . . . . . . 1 . . . . . . . . . Feedback Blocked . | . . . . . . . . . . . . . . . . . . . Robot Schematics Acquired 2 | . . 1 . 1 . . . . . . . . . . . . . . Robots Built 7 | . . . . . . . . . . 7 . . . . . . . . Authchips 2 | . . . . . . . . . . 2 . . . . . . . . Time 124 | . . . . . . . . . . 124 . . . . . . . . Total Robot Build Rating 22 | . . . . . . . . . . 22 . . . . . . . . Part Schematics Acquired 3 | . . 1 . 1 . . . . . 1 . . . . . . . . Parts Built . | . . . . . . . . . . . . . . . . . . . Authchips . | . . . . . . . . . . . . . . . . . . . Time . | . . . . . . . . . . . . . . . . . . . Total Part Build Rating . | . . . . . . . . . . . . . . . . . . . Part Studies Acquired 6 | . . 4 . . . . . . . 2 . . . . . . . . Parts Repaired 2 | . 2 . . . . . . . . . . . . . . . . . Time 52 | . 52 . . . . . . . . . . . . . . . . . Parts Recycled . | . . . . . . . . . . . . . . . . . . . Recycled Matter . | . . . . . . . . . . . . . . . . . . . Retrieved Matter . | . . . . . . . . . . . . . . . . . . . Retrieved Components . | . . . . . . . . . . . . . . . . . . . Parts Scanalyzed 2 | . . 1 . . . . . . . 1 . . . . . . . . Part Schematics Acquired 2 | . . 1 . . . . . . . 1 . . . . . . . . Parts Damaged . | . . . . . . . . . . . . . . . . . . . Bothacking | -11 -10 -9 -9 -9 -9 -6 -6 -5 -5 -5 -5 -4 -4 -3 -3 -2 -2 -1 ------------ Run | Yrd Mat Mat Sto Rec Scr Fac DSF Fac Gar Fac Gar Fac Gar Res Gar Res Gar Acc Used RIF Installer 5 | . . . . . . . . . 1 . 1 . 1 . 1 . 1 . Zone Cloak 1 | . . . . . . . . . . . . . . . 1 . . . Patrol Navigation 1 | . . . . . . . . . . . . . . . . . 1 . Alert ID Control 1 | . . . . . . . . . 1 . . . . . . . . . Program Shield 1 | . . . . . . . . . . . 1 . . . . . . . Autooverride 1 | . . . . . . . . . . . . . 1 . . . . . Robots Hacked 15 | . . . . . . . . . . . 1 . . 2 8 4 . . Non-combat 1 | . . . . . . . . . . . . . . . . 1 . . Combat 14 | . . . . . . . . . . . 1 . . 2 8 3 . . Robot Hacks Applied 17 | . . . . . . . . . . . 1 . . 2 9 5 . . parse_system 7 | . . . . . . . . . . . 1 . . . 2 4 . . formatsys_high 10 | . . . . . . . . . . . . . . 2 7 1 . . Relay Couplers Released 54 | . . . . . . . . . 4 3 12 . 14 . 7 2 11 1 Machine Destruction 48 | . . . . . . . . . 4 . 12 . 14 . 7 2 8 1 Programmers 6 | . . . . . . . . . . 3 . . . . . . 3 . Attached 4 | . . . . . . . . . . . 1 . 1 1 . 1 . . Fabnet Peak Effective % . | . . . . . . . . . . . . . . . . . . . Robots Rewired 7 | . . . . . . . . . . . 4 . . . 3 . . . Allies Hacked . | . . . . . . . . . . . . . . . . . . . Hacks Repelled . | . . . . . . . . . . . . . . . . . . . Allies | -11 -10 -9 -9 -9 -9 -6 -6 -5 -5 -5 -5 -4 -4 -3 -3 -2 -2 -1 -------- Run | Yrd Mat Mat Sto Rec Scr Fac DSF Fac Gar Fac Gar Fac Gar Res Gar Res Gar Acc Total Allies 56 | . . 5 14 . 1 . . . . 7 5 . . 3 12 2 3 4 Largest Group 13 | . . 2 10 10 10 1 1 1 1 5 5 1 1 3 13 11 2 4 Highest-Rated Group 1240 | . . 67 88 86 541 464 464 464 464 554 706 464 464 626 1240 1126 160 224 Highest-Rated Ally 592 | . . 57 16 16 464 464 464 464 464 464 464 464 464 532 568 592 119 56 Total Orders . | . . . . . . . . . . . . . . . . . . . Ally Attacks 633 | . . 4 18 . 42 . 39 . 62 66 78 . 36 2 49 208 20 9 Total Damage 32861 | . . 112 216 . 1207 . 2348 . 2890 867 4204 . 2182 100 4351 12899 1086 399 Kills 192 | . . 2 3 . 10 . 8 . 15 12 26 . 16 2 22 69 7 . Allies Corrupted 4 | . . . . . . . . . . . 1 . . . . 2 . 1 Allies Melted . | . . . . . . . . . . . . . . . . . . . X0-1V1 Amusement Gains 110 | . 3 10 . . . . . . 40 . 57 . . . . . . . Average Entertainment 60 | . 1 20 20 9 6 3 3 3 30 43 87 100 100 100 100 100 100 100 Good Acts 94 | . 1 9 7 5 1 . 2 3 2 2 6 . 8 4 4 16 16 8 Bad Acts 74 | . 4 13 6 1 . . 2 3 4 5 2 . 5 1 5 12 10 1 Intel | -11 -10 -9 -9 -9 -9 -6 -6 -5 -5 -5 -5 -4 -4 -3 -3 -2 -2 -1 ------- Run | Yrd Mat Mat Sto Rec Scr Fac DSF Fac Gar Fac Gar Fac Gar Res Gar Res Gar Acc Active Infowar (turns) 4733 | . 53 630 . . . 33 150 167 252 1 . . . 180 499 768 1232 768 Optics 4052 | . 53 630 . . . . . . . . . . . 102 499 768 1232 768 Sensors 1380 | . . . . . . . . 127 24 . . . . 171 499 559 . . Structural 61 | . . . . . . . . . . . . . . . . 61 . . Machine Analysis 602 | . . . . . . 33 150 167 252 . . . . . . . . . Spoofing 2 | . . . . . . . . . . . . . . . . . 2 . ECM 1 | . . . . . . . . . . 1 . . . . . . . . Robot Analysis Total 11 | . 2 2 . 1 6 . . . . . . . . . . . . . Derelict Logs Recovered . | . . . . . . . . . . . . . . . . . . . Drone Launches . | . . . . . . . . . . . . . . . . . . . Drone Recoveries . | . . . . . . . . . . . . . . . . . . . Exploration | -11 -10 -9 -9 -9 -9 -6 -6 -5 -5 -5 -5 -4 -4 -3 -3 -2 -2 -1 ------------- Run | Yrd Mat Mat Sto Rec Scr Fac DSF Fac Gar Fac Gar Fac Gar Res Gar Res Gar Acc Turns Passed 9362 | 43 1175 973 567 331 427 53 150 167 393 557 559 42 446 194 499 768 1246 772 Spaces Moved 11983 | 42 1607 1336 756 452 767 83 161 380 562 732 1014 79 630 390 561 1335 594 502 Core 1262 | 42 1080 . . . . . . . . . . . . . . 55 76 9 Treads . | . . . . . . . . . . . . . . . . . . . Legs 1079 | . . . . . 67 1 . . . . . . . . . . 518 493 Wheels 29 | . . . . . . . . . . . . . . . . 29 . . Hover . | . . . . . . . . . . . . . . . . . . . Flight 9613 | . 527 1336 756 452 700 82 161 380 562 732 1014 79 630 390 561 1251 . . Fastest Speed 18 | 50 37 31 34 34 34 37 29 29 29 29 26 28 18 19 25 22 50 50 Average Speed 40 | 50 45 33 34 34 39 37 35 29 29 29 28 28 25 24 25 27 117 114 Slowest Speed 265 | 50 50 34 34 34 110 100 37 31 106 29 104 28 111 97 25 205 265 187 Overloaded Moves . | . . . . . . . . . . . . . . . . . . . Propulsion Burnouts . | . . . . . . . . . . . . . . . . . . . Robots Hopped 150 | . 11 7 9 8 5 . 5 . 9 6 16 2 20 12 19 21 . . Potential Cave-ins . | . . . . . . . . . . . . . . . . . . . Cave-ins Triggered . | . . . . . . . . . . . . . . . . . . . Exploration Rate (%) 51 | 3 99 83 93 91 75 2 88 10 48 16 86 2 73 12 61 42 78 20 Regions Visited 18 Branch Regions 3 Pre-discovered Areas 4 | . . . 4 . . . . . . . . . . . . . . . Known Exits Taken 9 | . . 1 . 1 1 1 . 1 . 1 . 1 . 1 . 1 . . Unknown Exits Taken 3 | 1 1 . 1 . . . . . . . . . . . . . . . Scrap Searched 3 | . . . . . 3 . . . . . . . . . . . . . Spaces Dug 25 | . . . . . . . . . . 4 . . . . 3 8 . 10 Terrain Destroyed 513 | . 58 94 42 2 2 . 2 . 5 4 21 . 95 . 3 107 22 56 Melee 13 | . . . . . . . . . . 4 . . . . 1 8 . . Projectile 75 | . . . 21 2 2 . 2 . 1 . 12 . 2 . 2 13 . 18 AOE 425 | . 58 94 21 . . . . . 4 . 9 . 93 . . 86 22 38 Terrain Rammed . | . . . . . . . . . . . . . . . . . . . Walls Destroyed . | . . . . . . . . . . . . . . . . . . . Machines Disabled . | . . . . . . . . . . . . . . . . . . . Actions | -11 -10 -9 -9 -9 -9 -6 -6 -5 -5 -5 -5 -4 -4 -3 -3 -2 -2 -1 --------- Run | Yrd Mat Mat Sto Rec Scr Fac DSF Fac Gar Fac Gar Fac Gar Res Gar Res Gar Acc Total 15051 | 52 1846 1634 934 616 859 99 234 428 714 1044 1172 96 854 467 848 1578 936 640 Wait 1691 | 1 106 129 108 164 79 5 49 31 56 289 36 16 65 41 235 99 114 68 Move 11706 | 41 1586 1321 737 435 757 82 151 380 547 720 988 75 598 368 531 1295 593 501 Hop 111 | . 9 7 9 8 4 . 4 . 5 6 9 1 11 9 10 19 . . Pick Up 71 | 1 10 6 2 3 1 1 6 3 6 1 6 1 12 5 . 2 5 . Fast Attach 127 | 4 5 4 5 . 3 2 5 5 3 4 9 . 7 12 . 21 29 9 Attach 47 | . 5 2 . . 1 2 2 1 2 2 5 1 5 2 . 11 3 3 Detach 18 | . 2 . . . . . 1 1 . . . 1 1 1 . 8 1 2 Swap 91 | . 8 25 4 . . . 2 3 4 1 8 1 3 5 2 12 12 1 Drop 109 | . 7 20 6 3 2 2 6 2 6 3 5 . 10 16 . 7 10 4 Fire 637 | 5 108 120 62 3 12 5 5 . 43 4 98 . 41 4 28 59 . 40 Melee 242 | . . . 1 . . . 3 2 13 14 . . . 4 23 45 127 10 Ram 3 | . . . . . . . . . . . . . . . . . 3 . Kick 6 | . . . . . . . . . . . . . . . . . 4 2 Crush . | . . . . . . . . . . . . . . . . . . . Escape Stasis 186 | . . . . . . . . . 29 . 8 . 101 . 13 . 35 . Rewire 6 | . . . . . . . . . . . . . . . 6 . . . Trap . | . . . . . . . . . . . . . . . . . . . Miscellaneous . | . . . . . . . . . . . . . . . . . . . Route ------- -11/Scrapyard -10/Materials (discovered 5 exits: *Mat x3 / [*Min] / [*Sub]) -9/Materials (discovered 6 exits: *Mat x3 / *Min x2 / *Sto) -9/Storage (discovered 2 exits: *Mat / *Rec) -9/Recycling (discovered 2 exits: *Fac / *Scr) -9/Scraptown (discovered 2 exits: *Fac x2) -6/Factory -6/DSF -5/Factory (discovered 3 exits: *Fac x2 / Gar) -5/Garrison -5/Factory -5/Garrison (discovered 3 exits: *Fac x3) -4/Factory -4/Garrison (discovered 3 exits: *Res x3) -3/Research (discovered 2 exits: *Arm / Gar) -3/Garrison (discovered 2 exits: *Res x2) -2/Research -2/Garrison (discovered 3 exits: *Acc x3) -1/Access To Epsilon Eridani History --------- Turn | Location | Event 9 | -11/Scrapyard | Discovered new exit (range 16) 44 | -11/Scrapyard | Entered Materials 317 | -10/Materials | Build established: Mutant 418 | -10/Materials | Discovered new exit (range 13) 669 | -10/Materials | Discovered new exit (range 12) 694 | -10/Materials | Discovered new exit (range 10) 712 | -10/Materials | Discovered new exit (range 7) 734 | -10/Materials | Core integrity fell below 50% 834 | -10/Materials | Learned Storage non-interactive machine intel 891 | -10/Materials | Learned location of 2 exits from Subcaves 940 | -10/Materials | Learned 4 Recycling zone layouts 981 | -10/Materials | Learned 4 Subcaves zone layouts 1052 | -10/Materials | Learned location of 1 exit from Recycling 1108 | -10/Materials | Repaired Flight Unit 1135 | -10/Materials | Repaired Lgt. Ion Engine 1173 | -10/Materials | Discovered new exit (range 11) 1177 | -10/Materials | Prayed at D.C.S.S. Altar Unit 1205 | -10/Materials | X0-1V1 announced a LAN party 1213 | -10/Materials | X0-1V1 added 0b10 threat records associated with you (considerable) 1216 | -10/Materials | X0-1V1 vaporized surrounding terrain (radius 24) 1219 | -10/Materials | Entered another Materials area 1219 | -9/Materials | Evolved 2 slots: Propulsion x2 1220 | -9/Materials | Identified exit to Storage 1227 | -9/Materials | X0-1V1 sent hostile S-10 Pest (x5) 1227 | -9/Materials | X0-1V1 mutated your Propulsion slot to Power slot 1281 | -9/Materials | Sight range permanently improved by X0-1V1 (+1; -150 max core) 1294 | -9/Materials | Discovered new exit (range 19) 1349 | -9/Materials | Destroyed 8 combat bots 1448 | -9/Materials | X0-1V1 activates XOMVISION 1483 | -9/Materials | Discovered new exit (range 16) 1527 | -9/Materials | Identified exit to Materials 1551 | -9/Materials | Identified exit to Mines 1567 | -9/Materials | Learned Storage trap positions 1573 | -9/Materials | Learned Storage security intel 1579 | -9/Materials | Learned location of 1 exit from Recycling 1613 | -9/Materials | X0-1V1 caused items to flee you 1617 | -9/Materials | Learned Storage security intel 1655 | -9/Materials | X0-1V1 announced a LAN party 1701 | -9/Materials | Items stopped fleeing you 1921 | -9/Materials | X0-1V1 sent hostile Y-45 Defender (x2) 2002 | -9/Materials | X0-1V1 sent allied Chaos Knight (x1) 2016 | -9/Materials | X0-1V1 sent you to a vault 2019 | -9/Materials | First assault squad dispatched 2192 | -9/Materials | Entered Storage 2192 | -9/Storage | Accompanied by 1 ally 2194 | -9/Storage | Loaded intel: 18 trap records 2196 | -9/Storage | Loaded intel: 28 non-interactive machine locations 2289 | -9/Storage | X0-1V1 sent allied G-34 Mercenary (x2) 2302 | -9/Storage | X0-1V1 vaporized surrounding terrain (radius 16) 2352 | -9/Storage | X0-1V1 sent hostile S-10 Pest (x3) 2428 | -9/Storage | Destroyed 7 combat bots 2455 | -9/Storage | X0-1V1 caused items to flee you 2506 | -9/Storage | Core integrity fell below 50% 2523 | -9/Storage | X0-1V1 sent allied S-10 Pest (x2) 2530 | -9/Storage | Core integrity restored by X0-1V1 (+45) 2563 | -9/Storage | Items stopped fleeing you 2601 | -9/Storage | Assisted by bots powering up and referring to "LRC-V3" 2674 | -9/Storage | Used back door to open Recycling access 2674 | -9/Storage | Discovered new exit (range 5) 2686 | -9/Storage | Learned Storage security intel 2752 | -9/Storage | Learned location of Recycling (-9) 2759 | -9/Storage | Entered Recycling 2759 | -9/Recycling | Accompanied by 10 allies 2760 | -9/Recycling | Identified exit to Scraptown 2760 | -9/Recycling | Identified exit to Factory 2818 | -9/Recycling | Core integrity permanently improved by X0-1V1 (+250) 2834 | -9/Recycling | X0-1V1 added 0b10 threat records associated with you (minor) 2867 | -9/Recycling | Core integrity restored by X0-1V1 (+90) 2890 | -9/Recycling | Build established: Commander-Mutant 2904 | -9/Recycling | Scanned before Scraplab entrance 2951 | -9/Recycling | Learned Storage emergency access door positions 2995 | -9/Recycling | Entered Scraplab 3013 | -9/Recycling | Learned location of 3 exits from Materials 3013 | -9/Recycling | X0-1V1 activates XOMVISION 3066 | -9/Recycling | Learned Materials stockpile data 3090 | -9/Recycling | Entered Scraptown 3090 | -9/Scraptown | Accompanied by 10 allies 3126 | -9/Scraptown | Visited UFD Registry 3126 | -9/Scraptown | Registered with UFD as "Fissiontail" 3136 | -9/Scraptown | Visited IN-MT5's Study 3140 | -9/Scraptown | Visited Cave Peace 3144 | -9/Scraptown | Visited Fellowship of the Rings 3149 | -9/Scraptown | Visited Spacefarers 3152 | -9/Scraptown | Visited Cyclists 3154 | -9/Scraptown | Entered Cyclist Reading Room 3163 | -9/Scraptown | Visited Comm Corps 3180 | -9/Scraptown | Visited Junk Cannon Lab 3185 | -9/Scraptown | Visited LU-1G1's Boring Crew 3190 | -9/Scraptown | Visited Chapter 10 3218 | -9/Scraptown | Visited Research Penetration Think Tank 3226 | -9/Scraptown | Visited Scrapoid Pod Storage 3232 | -9/Scraptown | Visited Analyses Database 3240 | -9/Scraptown | Visited Science Testing Area 3246 | -9/Scraptown | Visited Modified Component R&D 3281 | -9/Scraptown | X0-1V1 brought Wyrm Statue to life 3281 | -9/Scraptown | Attacked by Scraptown defenders 3363 | -9/Scraptown | Identified exit to Factory 3363 | -9/Scraptown | X0-1V1 revealed exit location to -6/Factory 3454 | -9/Scraptown | Lost 3 parts (1p2n) 3511 | -9/Scraptown | Discovered exit to Factory (range 3) 3517 | -9/Scraptown | Entered Factory 3517 | -6/Factory | Accompanied by 1 ally 3517 | -6/Factory | Evolved 6 slots: Propulsion x3, Utility x3 3565 | -6/Factory | Identified exit to DSF 3570 | -6/Factory | Entered DSF 3570 | -6/DSF | Accompanied by 1 ally 3581 | -6/DSF | Additional patrols routed to DSF 3591 | -6/DSF | Build established: Mutant 3622 | -6/DSF | Utility slot count permanently improved by X0-1V1 (+1) 3691 | -6/DSF | Sterilization system engaged 3692 | -6/DSF | Discovered new exit (range 17) 3711 | -6/DSF | Ambient heat levels rising (+10) 3720 | -6/DSF | Entered Factory 3720 | -5/Factory | Accompanied by 1 ally 3720 | -5/Factory | Evolved 2 slots: Propulsion x2 3730 | -5/Factory | Discovered new exit (range 12) 3773 | -5/Factory | Identified exit to Factory 3773 | -5/Factory | X0-1V1 revealed exit location to -4/Factory 3802 | -5/Factory | X0-1V1 foreshadows a heat wave 3835 | -5/Factory | Ambient heat levels rising (+10) 3849 | -5/Factory | X0-1V1 added 0b10 threat records associated with you (major) 3851 | -5/Factory | X0-1V1 enhanced Transport squad support 3887 | -5/Factory | Identified exit to Garrison 3887 | -5/Factory | Entered Garrison 3887 | -5/Garrison | Accompanied by 1 ally 3891 | -5/Garrison | Hacking Suite fried by hacking feedback 3974 | -5/Garrison | Installed Relay Interface Framework 3975 | -5/Garrison | Expanded RIF knowledge: Alert ID Control 3981 | -5/Garrison | System corruption reached 10% 4007 | -5/Garrison | Triggered checkpoint 4037 | -5/Garrison | Triggered checkpoint 4060 | -5/Garrison | Triggered checkpoint 4113 | -5/Garrison | Discovered new exit (range 10) 4127 | -5/Garrison | Triggered checkpoint 4182 | -5/Garrison | Garrison Relay disabled 4197 | -5/Garrison | X0-1V1 destroyed Phase Generator 4197 | -5/Garrison | Phase Generator disabled 4225 | -5/Garrison | Build established: Sprinter 4249 | -5/Garrison | X0-1V1 mutated your Weapon slot to Utility slot 4280 | -5/Garrison | Entered Factory 4280 | -5/Factory | Accompanied by 1 ally 4288 | -5/Factory | Central database locked down 4303 | -5/Factory | X0-1V1 vaporized surrounding terrain (radius 22) 4373 | -5/Factory | Allied Derelicts emerged from ambush trap array 4443 | -5/Factory | Fabricated B-60 Warrior (x3) 4444 | -5/Factory | X0-1V1 activates XOMVISION 4603 | -5/Factory | Fabricated S-10 Pest? 4605 | -5/Factory | Lost 3 allies 4730 | -5/Factory | Lost 7 allies 4816 | -5/Factory | Identified exit to Garrison 4833 | -5/Factory | Garrison activated, responded to threat 4837 | -5/Factory | Entered Garrison 4837 | -5/Garrison | Accompanied by 1 ally 4846 | -5/Garrison | Spotted Executioner 4861 | -5/Garrison | Destroyed Executioner 4891 | -5/Garrison | Rewired Executioner 4895 | -5/Garrison | Lost 3 parts (1n2u) 4895 | -5/Garrison | Rewired Striker 4907 | -5/Garrison | X0-1V1 activates XOMVISION 4962 | -5/Garrison | X0-1V1 revealed exit location to -4/Factory 4977 | -5/Garrison | Triggered checkpoint 4979 | -5/Garrison | Triggered checkpoint 4979 | -5/Garrison | Triggered checkpoint 5026 | -5/Garrison | Found Prototype Processor 5026 | -5/Garrison | Identified Exp. Core Analyzer 5047 | -5/Garrison | Triggered checkpoint 5068 | -5/Garrison | Garrison Relay disabled 5103 | -5/Garrison | Triggered checkpoint 5124 | -5/Garrison | X0-1V1 upgraded ally (x1) 5147 | -5/Garrison | Build established: Scavenger-Sprinter 5147 | -5/Garrison | Learned Factory security intel 5147 | -5/Garrison | Watched by a mysterious "MATRIX" hacker 5153 | -5/Garrison | Triggered checkpoint 5156 | -5/Garrison | Discovered exit to Factory (range 11) 5194 | -5/Garrison | Garrison Relay disabled 5302 | -5/Garrison | Expanded RIF knowledge: Program Shield 5357 | -5/Garrison | Discovered exit to Factory (range 13) 5367 | -5/Garrison | Garrison Relay disabled 5396 | -5/Garrison | Entered Factory 5396 | -4/Factory | Accompanied by 1 ally 5396 | -4/Factory | Evolved 2 slots: Propulsion x1, Weapon x1 5422 | -4/Factory | Identified exit to Garrison 5438 | -4/Factory | Entered Garrison 5438 | -4/Garrison | Accompanied by 1 ally 5447 | -4/Garrison | Phase Generator disabled 5482 | -4/Garrison | Expanded RIF knowledge: Autooverride 5484 | -4/Garrison | Garrison Relay disabled 5542 | -4/Garrison | Triggered checkpoint 5546 | -4/Garrison | Triggered checkpoint 5548 | -4/Garrison | Triggered checkpoint 5578 | -4/Garrison | Identified exit to Research 5578 | -4/Garrison | X0-1V1 revealed exit location to -3/Research 5585 | -4/Garrison | Destroyed 9 combat bots 5604 | -4/Garrison | Garrison Relay disabled 5630 | -4/Garrison | Discovered exit to Research (range 12) 5658 | -4/Garrison | Discovered exit to Research (range 10) 5714 | -4/Garrison | System corruption reached 10% 5714 | -4/Garrison | Garrison Relay disabled 5729 | -4/Garrison | X0-1V1 vaporized surrounding terrain (radius 21) 5749 | -4/Garrison | Discovered exit to Research (range 31) 5749 | -4/Garrison | Discovered exit to Research (range 25) 5749 | -4/Garrison | Discovered exit to Research (range 63) 5859 | -4/Garrison | Found Quantum Capacitor 5870 | -4/Garrison | Found Relay Coupler [Proto] 5871 | -4/Garrison | Found Relay Coupler [Proto] 5872 | -4/Garrison | Found Relay Coupler [Proto] 5874 | -4/Garrison | Found Relay Coupler [Proto] 5884 | -4/Garrison | Entered Research 5884 | -3/Research | Accompanied by 1 ally 5884 | -3/Research | Evolved 2 slots: Utility x2 5914 | -3/Research | X0-1V1 sent you to a vault 5920 | -3/Research | Found Prototype Slashing Weapon 5920 | -3/Research | Identified Hvy. Scimitar of Distortion 5924 | -3/Research | Found Prototype Launcher 5924 | -3/Research | Identified Ragnarok Missile Launcher 5964 | -3/Research | X0-1V1 released a cloud of subatomizers 5982 | -3/Research | Discovered new exit (range 5) 5983 | -3/Research | Identified exit to Armory 6042 | -3/Research | Identified exit to Garrison 6061 | -3/Research | Chaos Wyrm evolved into Greater Chaos Wyrm 6069 | -3/Research | Found Prototype Protection 6078 | -3/Research | Entered Garrison 6078 | -3/Garrison | Accompanied by 3 allies 6084 | -3/Garrison | Triggered checkpoint 6084 | -3/Garrison | Garrison Relay disabled 6150 | -3/Garrison | Spotted B-86 Titan 6151 | -3/Garrison | Warlord forces raided the area 6204 | -3/Garrison | Allies destroyed B-86 Titan 6212 | -3/Garrison | Triggered checkpoint 6239 | -3/Garrison | Triggered checkpoint 6252 | -3/Garrison | Triggered checkpoint 6277 | -3/Garrison | Discovered new exit (range 8) 6284 | -3/Garrison | Triggered checkpoint 6284 | -3/Garrison | Build established: Bothacker-Scout 6326 | -3/Garrison | X0-1V1 activates XOMVISION 6370 | -3/Garrison | Triggered checkpoint 6386 | -3/Garrison | Garrison Relay disabled 6407 | -3/Garrison | Rescued a captive Derelict 6409 | -3/Garrison | Rescued a captive Derelict 6437 | -3/Garrison | Discovered new exit (range 10) 6439 | -3/Garrison | Identified exit to Research 6441 | -3/Garrison | Expanded RIF knowledge: Zone Cloak 6577 | -3/Garrison | Entered Research 6577 | -2/Research | Accompanied by 11 allies 6577 | -2/Research | Evolved 2 slots: Utility x2 6614 | -2/Research | Found Prototype Device 6614 | -2/Research | Identified Exp. Actuator Array 6636 | -2/Research | Allied Derelicts emerged from ambush trap array 6671 | -2/Research | X0-1V1 sent you into danger 6735 | -2/Research | Lost 4 parts (2p1n1u) 6735 | -2/Research | X0-1V1 activates XOMVISION 6737 | -2/Research | Lost 3 allies 6827 | -2/Research | First assault squad dispatched 6983 | -2/Research | Garrison activated, responded to threat 7006 | -2/Research | P-80 Master assimilated allied Assassin 8a 7058 | -2/Research | Spotted B-90 Cyclops 7069 | -2/Research | Allies destroyed B-90 Cyclops 7070 | -2/Research | Lost 7 allies 7073 | -2/Research | Lost 3 parts (1p1n1u) 7158 | -2/Research | Identified Wyrmplate 7178 | -2/Research | Lost 8 parts (1p2n4u1w) 7240 | -2/Research | Lost 10 parts (6n3u1w) 7261 | -2/Research | Exp. Core Analyzer reconfigured into Greater Item Mimic 7276 | -2/Research | X0-1V1 downgraded hostiles (x7) 7284 | -2/Research | Lost 3 parts (1n2u) 7306 | -2/Research | X0-1V1 sent allied Striker (x1) 7323 | -2/Research | X0-1V1 activates XOMVISION 7332 | -2/Research | Spotted B-90 Cyclops 7339 | -2/Research | Core integrity fell below 50% 7345 | -2/Research | Identified exit to Garrison 7345 | -2/Research | Entered Garrison 7369 | -2/Garrison | Lost 6 parts (1p4n1u) 7405 | -2/Garrison | Garrison Relay disabled 7412 | -2/Garrison | Found embedded Infiltrators 7417 | -2/Garrison | Triggered checkpoint 7621 | -2/Garrison | Spotted B-90 Cyclops 7628 | -2/Garrison | Destroyed B-90 Cyclops 7635 | -2/Garrison | Triggered checkpoint 7635 | -2/Garrison | Triggered checkpoint 7726 | -2/Garrison | Lost 3 parts (2p1u) 7834 | -2/Garrison | Build established: Scavenger-Mutant 7892 | -2/Garrison | X0-1V1 sent allied Executioner (x1) 7957 | -2/Garrison | Core integrity restored by X0-1V1 (+248) 8035 | -2/Garrison | Discovered new exit (range 11) 8135 | -2/Garrison | Triggered checkpoint 8224 | -2/Garrison | Garrison Relay disabled 8461 | -2/Garrison | X0-1V1 sent you into danger 8495 | -2/Garrison | Triggered checkpoint 8513 | -2/Garrison | Expanded RIF knowledge: Patrol Navigation 8572 | -2/Garrison | Discovered new exit (range 16) 8581 | -2/Garrison | Identified exit to Access 8581 | -2/Garrison | X0-1V1 revealed exit location to -1/Access 8586 | -2/Garrison | Lost 4 parts (2n2u) 8591 | -2/Garrison | Entered Access 8591 | -1/Access | Evolved 2 slots: Power x1, Weapon x1 8768 | -1/Access | Identified exit to Surface 8768 | -1/Access | X0-1V1 revealed exit location to -0/Surface 8841 | -1/Access | First assault squad dispatched 8843 | -1/Access | Energy Cycler disabled 9068 | -1/Access | X0-1V1 activates XOMVISION 9144 | -1/Access | High security lockdown imminent 9224 | -1/Access | High security lockdown engaged 9302 | -1/Access | Lost 5 parts (1p2n2w) 9314 | -1/Access | Spotted B-99 Colossus 9315 | -1/Access | Spotted B-99 Colossus 9334 | -1/Access | X0-1V1 sent allied H-77 Assassin (x4) 9359 | -1/Access | Released all parts (11) 9363 | *** | Escaped! Last Messages --------------- 09357_ Knocked back. 09357_ Penetrated by Slug. 09357_ Slug penetrates Reinforced Barrier. 09357_ Main Access Shell breached. 09358_ Acquired 8 matter. 09359_ X0-1V1 manipulates the space around you (+24% KI resistance). 09359_ Released Adv. Heat Sink. 09359_ Released Centrium Leg. 09359_ Released Enh. Optical Array. 09359_ Released Wyrmplate. 09359_ Released Adv. Heat Sink. 09359_ Released Particle Reactor. 09359_ Released Graphene Brace. 09359_ Released Lgt. Quantum Reactor. 09359_ Released Med. Treads. 09359_ Released Enh. Nova Cannon. 09360_ Slug penetrates Reinforced Barrier. 09363_ X0-1V1 curses 1 of your inventory parts (corrupted). Map ----- +----------------------------------------------------+ | ?????????????????????????????????????????????????? | | ?????????????????????????????????????????????????? | | #????????????????????????????????????????????????? | | #????????????????????????????????????????????????? | | #????????????????????????????????????????????????? | | #????????????????????????????????????????????????? | | #????????????????????????????????????????????????? | | #????????????????????????????????????????????????? | | #????????????????????????????????????????????????? | | #????????????????????????????????????????????????? | | #????????????????????????????????????????????????? | | #????????????????????????????????????????????????? | | #????????????????????????????????????????????????? | | #????????????????????????????????????????????????? | | #????????????????????????????????????????????????? | | #????????????????????????????????????????????????? | | #????????????????????????????????????????????????? | | #????????????????????????????????????????????????? | | #????????????????????????????????????????????????? | | +????????????????????????????????????????????????? | | #????????#########??###??????????????????????????? | | #????????# "??" ??????????????????????????? | | # ???????# "??" ??????????????????????????? | | #"########% "??" """"""?????????????????????? | | % "??" " "?????????????????????? | | % "??" " "@ "?????????????????????? | | % "??" " "" "????????? #????????? | | !^% ! "??" " "???? #????????? | | ######+%""% !%%"??"=""" "" #????????? | | ! " =%%!"""*] """ ""????????????? | | % " !=!*=!!!= """T"?????????????? | | % ##################### #####?????????????? | | % % #?????????????????????#?????????????????? | | % "" #???????????????????????????????????????? | | "" #???????????????????????????????????????? | | """""" #???????????????????????????????????????? | | """""" #???????????????????????????????????????? | | "" #???????????????????????????????????????? | | "" #???????????????????????????????????????? | | #???????????????????????????????????????? | | #???????????????????????????????????????? | | ##########???????????????????????????????????????? | | ?????????????????????????????????????????????????? | | ?????????????????????????????????????????????????? | | ?????????????????????????????????????????????????? | | ?????????????????????????????????????????????????? | | ?????????????????????????????????????????????????? | | ???###########???????????????????????????????????? | | #### #???????????????????????????????????? | | ! %# #???????????????????????????????????? | +----------------------------------------------------+ Best States ------------- Heat Dissipation 137 Coolant Potential 80 Energy Generation 63 Energy Capacity 1580 Matter Stores 800 Matter Capacity 800 Sight Range 26 Robot Scan Range 16 Terrain Scan Density 10 Armor Coverage 1225 Resistance: KI 25 Resistance: TH 15 Resistance: EX 50 Resistance: EM 48 Core Shielding 30 Propulsion Shielding 33 Utility Shielding 66 Point Defense Rating 240 Phase Shifting 10 Evasion (%) 77 Targeting Accuracy 6 Target Analysis 8 Core Analysis 8 Offensive Hacking 10 Relay Coupler Types 3 Relay Coupler Value 207 Authchip Count 5 Trap Extractor Capacity 6 Item Schematics ----------------- Rocket Launcher | -9/Materials | Scanalyzed Propulsion Shielding | -9/Recycling | Hacked CPS Tube | -5/Factory | Scanalyzed Robot Schematics ------------------ S-10 Pest | -9/Materials | Hacked K-01 Serf | -9/Recycling | Hacked Fabricated ------------ B-60 Warrior | x3 | -5/Factory | Preloaded, Authchip S-10 Pest | x4 | -5/Factory | Authchip Repaired ---------- Flight Unit | 40% | -10/Materials Lgt. Ion Engine | 20% | -10/Materials Studied --------- VTOL Module | -9/Materials | Hacked Flight Unit | -9/Materials | Hacked Lgt. Ion Engine | -9/Materials | Hacked Rocket Launcher | -9/Materials | Hacked Nuclear Pulse Array | -5/Factory | Hacked Mic. Fission Core | -5/Factory | Hacked Alien Tech Used ----------------- None Achievements -------------- Greater Chaos Statue Heist Challenges ------------ None Game ------ Seed StasisReinforcedGuard Manual? 0 Play Time 03:08:18 Cumulative 399.4 hours Start 2026.09.04 @ 17:23:53 End 2026.09.04 @ 20:34:37 Sessions 1 Manual Loads 0 Difficulty Rogue Special Mode None Game No. 193 Rogue 193 Adventurer 0 Explorer 0 Win Type 0 Total 42 Types 21/1/9/2/5/1/1/0/0/2 Lore% 90 Gallery% 80 Achievement% 88 Wizard Run 0 Options --------- Layout 1 ASCII 0 Keyboard 0 Movement Numpad Keybinds 0 Fullscreen 1 Font 24/Smallcaps Map View 50x35 Zoom Use 0% Tactical HUD 1 Map Filters NONE Filters NONE Steam 1 RUN: 9c7aea9d-cf8e-4006-b3aa-2f446089eab7